[Event "Swietokrzyskie GM Chess-ch 2022"]
[Site "Zagnansk"]
[Date "2022.05.06"]
[Round "9.1"]
[White "Samunenkov, FM Ihor"]
[Black "Kowalski, IM Igor"]
[Result "1/2-1/2"]
[ECO "D79"]
[WhiteElo "2372"]
[BlackElo "2370"]
[Annotator "TA"]
[PlyCount "71"]
[EventDate "2022.04.29"]
[EventCountry "POL"]
[SourceTitle "playchess.com"]
[Source "ChessBase"]
[SourceQuality "1"]
[TimeControl "40/5400+30:1800+30"]

{[%evp 15,71,0,22,0,0,0,26,18,28,26,22,36,58,50,56,12,58,53,47,34,41,31,65,60,54,18,43,0,0,0,0,0,24,0,6,4,8,0,0,0,0,0,0,0,39,0,0,0,0,0,0,0,0,0,0,0,0,0]} 1. d4 {[%emt 0:00:03]} Nf6 {[%emt 0:00:04]} 2. g3 {[%emt 0:00:06]} g6 {[%emt 0:00:13]} 3. Bg2 {[%emt 0:00:14]} d5 {[%emt 0:00:04]} 4. Nf3 {[%emt 0:00:15]} Bg7 {[%emt 0:00:04]} 5. c4 {[%emt 0:00:41]} c6 {[%emt 0:00:05]} 6. O-O {[%emt 0:00:08]} O-O {[%emt 0:00:04]} 7. cxd5 {[%emt 0:00:08]} cxd5 {[%emt 0:00:05]} 8. Ne5 {[%emt 0:00:06]} Ng4 {[%emt 0:00:29]} 9. Bf4 {[%emt 0:00:09] D79: Fianchetto Grünfeld: Symmetrical Variation (6 0-0 c6 7 cxd5 cxd5).} Nxe5 {[%emt 0:00:28]} 10. Bxe5 {[%emt 0:00:16]} Bxe5 {[%emt 0:02:25]} (10... f6 $5 {[%cal Rf6e5]} 11. Bf4 Nc6 $11) 11. dxe5 {[%emt 0:00:08] [#] White has an edge.} Qb6 $146 {[%emt 0:02:30]} ({Predecessor:} 11... Nc6 12. Qxd5 Qxd5 13. Bxd5 Nxe5 14. Na3 Bd7 15. f4 Bc6 16. Rfd1 Rfd8 17. Bb3 Ng4 {½-½ (46) Banusz,T (2631)-Mamedov,R (2654) Tornelo INT 2021}) 12. Qb3 {[%emt 0:17:25]} Qxb3 {[%emt 0:09:43]} 13. axb3 {[%emt 0:01:28]} e6 {[%emt 0:00:03]} 14. f4 {[%emt 0:09:57]} Nc6 {[%emt 0:03:48]} 15. Rd1 {[%emt 0:03:39]} b6 {[%emt 0:04:37]} (15... g5 $11) 16. Nc3 {[%emt 0:03:32][%cal Bb1c3,Bc3b5,Bb5d4][%mdl 32]} Nb4 {[%emt 0:08:49]} 17. Rac1 {[%emt 0:08:25]} Bb7 {[%emt 0:08:47]} 18. Nb5 {[%emt 0:13:39] Threatens to win with Nd6.} Ba6 {[%emt 0:12:49]} 19. Nd4 {[%emt 0:08:51] White is more active.} Rfc8 {[%emt 0:04:58]} 20. Kf2 {[%emt 0:04:40]} Rc5 {[%emt 0:01:58]} 21. Ke3 {[%emt 0:01:08]} Bb7 {[%emt 0:04:09]} 22. g4 {[%emt 0:02:52]} Rac8 {[%emt 0:00:52]} 23. Kd2 {[%emt 0:00:21]} Kg7 {[%emt 0:04:31]} 24. h4 {[%emt 0:04:12]} Nc6 $132 {[%emt 0:05:46][%mdl 2048] Black is not keeping still} 25. Nxc6 {[%emt 0:07:12]} R8xc6 {[%emt 0:00:28]} 26. Rc3 {[%emt 0:01:00]} Rb5 {[%emt 0:03:50]} 27. Rxc6 {[%emt 0:03:51]} Bxc6 $11 {[%emt 0:00:07][%mdl 4096] Endgame KRB-KRB} 28. Rc1 {[%emt 0:00:08]} Be8 {[%emt 0:04:52]} 29. Rc8 {[%emt 0:02:09]} Kf8 {[%emt 0:01:36]} (29... Bd7 $5 {[%cal Rd7c8]} 30. Rc7 Be8 $11) 30. Kc3 {[%emt 0:02:57]} (30. e4 $5 {[%cal Re4d5]}) 30... a5 {[%emt 0:00:51] The position is equal.} 31. Rb8 {[%emt 0:01:56]} Ke7 {[%emt 0:03:41]} 32. e3 {[%emt 0:00:16]} Rc5+ {[%emt 0:01:43]} 33. Kd2 {[%emt 0:00:15]} Rb5 {[%emt 0:00:18]} 34. Kc3 {[%emt 0:02:07]} Rc5+ {[%emt 0:00:05]} 35. Kd2 {[%emt 0:00:43]} Rb5 {[%emt 0:00:03]} 36. Kc3 {[%emt 0:00:32] Weighted Error Value: White=0.10 (very precise) /Black=0.08 (flawless)} 1/2-1/2

[Event "Swietokrzyskie GM Chess-ch 2022"]
[Site "Zagnansk"]
[Date "2022.05.06"]
[Round "9.2"]
[White "Tazbir, GM Marcin"]
[Black "Stoyanov, IM Tsvetan"]
[Result "1/2-1/2"]
[ECO "B54"]
[WhiteElo "2506"]
[BlackElo "2424"]
[Annotator "TA"]
[PlyCount "59"]
[EventDate "2022.04.29"]
[EventCountry "POL"]
[SourceTitle "playchess.com"]
[Source "ChessBase"]
[SourceQuality "1"]
[TimeControl "40/5400+30:1800+30"]

{[%evp 18,59,26,33,45,47,78,90,93,82,87,79,100,101,102,56,61,48,54,0,0,0,0,0,0,-8,-5,-12,-14,-56,-56,-84,-53,-56,-63,-165,-92,-172,-8,-8,-3,-3,-3,-3]} 1. e4 {[%emt 0:00:03]} c5 {[%emt 0:00:23]} 2. Nf3 {[%emt 0:00:04]} d6 {[%emt 0:00:29]} 3. d4 {[%emt 0:00:04]} cxd4 {[%emt 0:00:30]} 4. Nxd4 {[%emt 0:00:05]} Nf6 {[%emt 0:00:16]} 5. f3 {[%emt 0:00:04]} e5 {[%emt 0:02:17]} 6. Nb3 {[%emt 0:00:13]} d5 {[%emt 0:00:58]} 7. Bg5 {[%emt 0:00:50]} Be6 {[%emt 0:21:29]} 8. Bxf6 {[%emt 0:00:11]} gxf6 {[%emt 0:00:15]} 9. exd5 {[%emt 0:00:05]} Bxd5 {[%emt 0:10:22]} 10. Nc3 {[%emt 0:11:56]} Bb4 {[%emt 0:01:58] B55: Sicilian: 2...d6 3 d4 cxd4 4 Nxd4 Nf6 5 f3.} 11. Qd3 {[%emt 0:00:11]} Nc6 {[%emt 0:05:19]} 12. O-O-O {[%emt 0:03:27]} Bxb3 {[%emt 0:08:14] White is better.} 13. axb3 {[%emt 0:03:17] Threatens to win with Nd5.} ({Reject} 13. Qb5 Qe7 14. axb3 a6 $14) 13... Qxd3 {[%emt 0:06:26]} 14. Bxd3 {[%emt 0:00:18]} Bxc3 {[%emt 0:01:14]} 15. bxc3 {[%emt 0:00:05]} h5 {[%emt 0:08:46] [#]} 16. Bf5 $146 {[%emt 0:13:01]} (16. f4 $16) ({Predecessor:} 16. Be4 Rg8 17. Rd2 Rd8 18. Re2 Kf8 19. f4 Rd7 20. Rf1 Ne7 21. Bf3 Ng6 22. f5 {1-0 (48) Recky,N (1863)-Hudak,D (2000) Slovakia 2005}) 16... Rd8 $14 {[%emt 0:04:46]} 17. Rxd8+ {[%emt 0:00:22]} Nxd8 {[%emt 0:00:33][%mdl 4096] Endgame KRB-KRN} 18. Bc8 {[%emt 0:00:06]} (18. Rd1 $14) 18... h4 $11 {[%emt 0:08:10]} 19. Rd1 {[%emt 0:00:30]} Rg8 {[%emt 0:01:07]} 20. Rd2 {[%emt 0:00:06]} b6 {[%emt 0:01:15]} 21. Bd7+ {[%emt 0:10:23]} Ke7 {[%emt 0:00:38]} 22. Bb5 {[%emt 0:01:11]} f5 {[%emt 0:02:15]} 23. g3 {[%emt 0:17:48]} hxg3 {[%emt 0:00:24]} 24. hxg3 {[%emt 0:00:05][%cal Og3g4]} Ne6 {[%emt 0:07:12]} 25. Rd7+ {[%emt 0:00:11]} Kf6 {[%emt 0:00:03]} 26. Rxa7 {[%emt 0:00:05]} (26. g4 $1 $15) 26... Rxg3 $19 {[%emt 0:00:04]} 27. Bc6 {[%emt 0:00:05] [#]} (27. Be2 $17) 27... e4 $2 {[%emt 0:03:00]} (27... Ng5 $1 $19 28. Ra6 Nxf3 29. Rxb6 Ng5) 28. fxe4 $11 {[%emt 0:00:21][%cal Bf3e4,Be4f5,Bf5e6][%mdl 32] The position is equal.} Rxc3 {[%emt 0:01:14]} 29. exf5 {[%emt 0:00:44]} Rxc6 {[%emt 0:00:36]} 30. fxe6 {[%emt 0:00:06] Weighted Error Value: White=0.22 (precise) /Black=0.21 (precise)} 1/2-1/2

[Event "Swietokrzyskie GM Chess-ch 2022"]
[Site "Zagnansk"]
[Date "2022.05.06"]
[Round "9.3"]
[White "Chatalbashev, GM Boris"]
[Black "Fus, FM Jakub"]
[Result "1/2-1/2"]
[ECO "A30"]
[WhiteElo "2539"]
[BlackElo "2377"]
[Annotator "TA"]
[PlyCount "169"]
[EventDate "2022.04.29"]
[EventCountry "POL"]
[SourceTitle "playchess.com"]
[Source "ChessBase"]
[SourceQuality "1"]
[TimeControl "40/5400+30:1800+30"]

{[%evp 13,169,12,16,13,26,17,11,10,10,10,8,14,18,16,21,13,19,7,8,10,7,0,20,0,0,-23,-25,-21,-20,-18,0,0,14,23,39,29,105,81,125,70,88,66,91,63,118,37,39,70,69,42,34,35,36,53,81,57,61,44,45,14,14,12,14,14,16,0,0,0,18,0,0,0,0,-47,0,3,3,0,0,-24,175,174,197,190,174,81,82,74,74,74,74,41,39,43,68,8,8,8,8,8,8,8,8,0,8,8,8,0,0,0,0,0,0,0,8,0,0,0,8,8,8,8,8,0,8,8,8,0,8,0,0,0,0,0,0,0,0,0,0,0,0,0,0,0,0,0,0,0,0,0,0,0,0,0,0,0,0,0]} 1. c4 {[%emt 0:00:04]} c5 {[%emt 0:00:07]} 2. Nf3 {[%emt 0:00:10]} Nc6 {[%emt 0:00:15]} 3. Nc3 {[%emt 0:00:10]} e5 {[%emt 0:00:32]} 4. e3 {[%emt 0:01:52]} Nf6 {[%emt 0:00:35]} 5. Be2 {[%emt 0:00:09]} d5 {[%emt 0:04:28]} 6. d4 {[%emt 0:00:49]} exd4 $1 {[%emt 0:03:27] The main line 6...exd4 scores better than 6...cxd4.} 7. exd4 {[%emt 0:00:06]} cxd4 {[%emt 0:02:59]} 8. Nxd4 {[%emt 0:00:15] A34: Symmetrical English: 2 Nc3, lines with ...d5.} dxc4 {[%emt 0:00:51]} (8... Bc5 {with more complications.} 9. Nxc6 bxc6 10. cxd5 Nxd5 11. Nxd5 Qxd5 12. O-O O-O) 9. Nxc6 {[%emt 0:00:16][%csl Gc6][%cal Rd1d8]} Qxd1+ {[%emt 0:00:37]} 10. Nxd1 {[%emt 0:09:29]} bxc6 {[%emt 0:00:06]} 11. Bxc4 {[%emt 0:03:12]} Bb4+ {[%emt 0:12:33]} 12. Bd2 {[%emt 0:00:14]} Bxd2+ {[%emt 0:09:11]} 13. Kxd2 {[%emt 0:00:08]} O-O {[%emt 0:01:10]} 14. Ne3 {[%emt 0:03:10]} Rd8+ {[%emt 0:02:37] [#]} 15. Kc2 $146 {[%emt 0:07:10]} ({Predecessor:} 15. Ke2 Rb8 16. b3 Ne4 17. Rhc1 Rd2+ 18. Ke1 Rd6 19. Rd1 Kf8 20. f3 Rxd1+ 21. Rxd1 {½-½ (66) Spizharny,M (2153)-Bugaev,A (1748) Orsha 2021}) 15... Nd5 {[%emt 0:05:55]} 16. Rhe1 {[%emt 0:04:57]} Be6 {[%emt 0:01:54]} 17. b3 {[%emt 0:04:34]} Kf8 {[%emt 0:07:10]} 18. Bxd5 {[%emt 0:14:06]} cxd5 {[%emt 0:03:47]} 19. Rad1 {[%emt 0:00:27]} d4 {[%emt 0:07:04]} 20. Nc4 {[%emt 0:00:30]} Rac8 {[%emt 0:15:45]} 21. Kd3 {[%emt 0:00:07]} Rc5 {[%emt 0:00:09]} 22. Rc1 {[%emt 0:02:04]} Bf5+ {[%emt 0:05:01]} 23. Kd2 {[%emt 0:00:09]} f6 {[%emt 0:03:29]} 24. b4 {[%emt 0:08:07]} Rcd5 {[%emt 0:02:05] [#]} (24... Rc7 $11 {keeps the balance.}) 25. Na5 $1 $16 {[%emt 0:04:28]} R8d7 {[%emt 0:00:09]} 26. h4 {[%emt 0:08:10]} (26. Rc8+ $16 Kf7 27. a4) 26... Kf7 {[%emt 0:00:57]} 27. a3 {[%emt 0:00:27]} h5 {[%emt 0:01:31]} 28. Rc6 {[%emt 0:05:13]} Bg6 {[%emt 0:04:03]} (28... R7d6 $14) 29. Ra6 {[%emt 0:05:01]} (29. Nb3 $16) 29... Rf5 $14 {[%emt 0:01:34]} 30. f3 {[%emt 0:00:31]} Rf4 {[%emt 0:00:13]} 31. Rh1 {[%emt 0:08:32]} (31. Nc6 $5 {[%cal Ra6a7]} Rxh4 32. Rxa7 Rxa7 33. Nxa7 $14) 31... d3 $1 {[%emt 0:00:03]} 32. Ke3 $1 {[%emt 0:03:46]} (32. Nc6 Rc4 33. Rxa7 Rc2+ 34. Kd1 Rxa7 35. Nxa7 Ra2 $17) 32... Rfd4 {[%emt 0:02:13] [#]} 33. Rxa7 $1 {[%emt 0:01:15]} Rxa7 {[%emt 0:00:53]} 34. Kxd4 {[%emt 0:00:03][%mdl 4096] Endgame KRB-KRN} Rd7+ {[%emt 0:01:21]} 35. Kc3 {[%emt 0:01:14]} Rc7+ $1 {[%emt 0:00:21]} ({Weaker is} 35... d2 36. Rd1 $16) 36. Nc4 {[%emt 0:00:51]} Ke6 $1 {[%emt 0:01:04]} (36... d2 $2 37. Rd1 $18) 37. Kd4 {[%emt 0:00:33]} Rd7+ {[%emt 0:00:09]} 38. Ke3 {[%emt 0:00:30]} Re7 $1 {[%emt 0:00:28]} 39. Kd4 {[%emt 0:03:10]} Rd7+ {[%emt 0:00:02]} 40. Ke3 {[%emt 0:00:00]} Re7 $1 {[%emt 0:00:00]} 41. Kf4 {[%emt 0:22:17] aiming for Re1+.} Kd5 {[%emt 0:16:40]} 42. Rc1 {[%emt 0:01:38] And now Nb6+ would win.} Kd4 {[%emt 0:03:19]} 43. Nd2 {[%emt 0:01:42]} (43. b5 $11 {was preferrable.}) 43... Re2 {[%emt 0:04:48]} (43... Bf7 $15 44. Rc8 Bd5) 44. Nb3+ $11 {[%emt 0:01:17]} Kd5 {[%emt 0:00:02]} 45. Rc7 {[%emt 0:01:52]} Rb2 {[%emt 0:02:45]} 46. Nc5 {[%emt 0:00:24]} d2 $2 {[%emt 0:00:54]} (46... Rxg2 $11 {and Black has nothing to worry.} 47. Nb3 Rb2) 47. Rd7+ $18 {[%emt 0:00:45]} ({Inferior is} 47. Rxg7 Be8 48. Ne4 Ke6 49. Nc5+ Kd5 $11) 47... Kc4 {[%emt 0:00:06]} 48. Ke3 {[%emt 0:00:19] Hoping for Rd4+.} Ra2 {[%emt 0:00:49]} 49. Rxd2 {[%emt 0:06:14]} (49. Ne6 $18 {is more deadly.}) 49... Rxa3+ $16 {[%emt 0:00:03]} 50. Kf4 {[%emt 0:00:02] Rd7 is the strong threat. White is more active.} Kxb4 {[%emt 0:00:32] [#]} 51. Ne6 {[%emt 0:00:02]} Ra7 {[%emt 0:00:39] Inhibits Rd7.} 52. Rd8 {[%emt 0:00:52]} Re7 {[%emt 0:00:33]} 53. Rd6 {[%emt 0:00:47]} Kc4 {[%emt 0:02:28]} 54. g4 {[%emt 0:00:15]} (54. Kg3 $1 $14) 54... hxg4 $11 {[%emt 0:00:05] The position is equal.} 55. fxg4 {[%emt 0:00:01]} Bh7 {[%emt 0:00:15]} 56. h5 {[%emt 0:00:32]} Bb1 {[%emt 0:03:03]} 57. Rd4+ {[%emt 0:01:09]} Kc3 {[%emt 0:00:21]} 58. Rd6 {[%emt 0:00:01]} Kc4 {[%emt 0:00:04]} 59. Kf3 {[%emt 0:00:31]} Bh7 {[%emt 0:00:21]} 60. Kg3 {[%emt 0:01:02]} Bg8 {[%emt 0:02:13]} 61. Nd4 {[%emt 0:00:32]} Bh7 {[%emt 0:00:50]} 62. Nf3 {[%emt 0:00:29]} Kc5 {[%emt 0:00:05]} 63. Rd8 {[%emt 0:00:10]} Kc6 {[%emt 0:01:31]} 64. Kf4 {[%emt 0:01:01]} Re4+ {[%emt 0:00:04]} 65. Kg3 {Threatens to win with Rh8.} Re7 {[%emt 0:00:03]} 66. Nd4+ {[%emt 0:00:29]} Kc7 {[%emt 0:00:08]} 67. Rh8 {[%emt 0:00:14]} Bb1 {[%emt 0:00:20]} 68. Rg8 {[%emt 0:00:38]} Kd7 {[%emt 0:00:29]} 69. Rb8 {[%emt 0:00:07]} Bd3 {[%emt 0:00:32]} 70. Kf3 {[%emt 0:00:20]} Bh7 {[%emt 0:00:34]} 71. Rh8 {[%emt 0:00:32]} Be4+ {[%emt 0:00:54]} 72. Kf4 {[%emt 0:00:33]} Bd3 {[%emt 0:00:03]} 73. Nb3 {[%emt 0:00:54] Black must now prevent Nc5+.} Bc2 {[%emt 0:00:16]} 74. Nc5+ {[%emt 0:00:26]} Kc6 {[%emt 0:00:41]} 75. Rc8+ {[%emt 0:00:39]} Kd5 {[%emt 0:00:04]} 76. Kg3 {[%emt 0:01:20]} Ra7 {[%emt 0:01:04]} 77. Kh4 {[%emt 0:00:37]} Kd6 {[%emt 0:00:48]} 78. Na6 {[%emt 0:01:11]} Rxa6 {[%emt 0:00:36]} 79. Rxc2 {[%emt 0:00:03] KR-KR} Ke7 {[%emt 0:00:27]} 80. Rc7+ {[%emt 0:00:23]} Kf8 {[%emt 0:00:04]} 81. h6 {[%emt 0:00:19]} gxh6 {[%emt 0:00:03]} 82. Kh5 {[%emt 0:00:03]} Ra5+ {[%emt 0:00:18]} 83. Kg6 {[%emt 0:00:18]} Rg5+ {[%emt 0:00:03]} 84. Kxf6 {[%emt 0:00:07][%cal Rc7c8]} Kg8 $1 {[%emt 0:00:04]} 85. Rc8+ {[%emt 0:01:17] Weighted Error Value: White=0.13 (very precise) /Black=0.12 (very precise)} 1/2-1/2

[Event "Swietokrzyskie GM Chess-ch 2022"]
[Site "Zagnansk"]
[Date "2022.05.06"]
[Round "9.4"]
[White "Szpar, IM Milosz"]
[Black "Pacan-Milej, FM Kosma"]
[Result "1/2-1/2"]
[ECO "B15"]
[WhiteElo "2434"]
[BlackElo "2404"]
[Annotator "TA"]
[PlyCount "49"]
[EventDate "2022.04.29"]
[EventCountry "POL"]
[SourceTitle "playchess.com"]
[Source "ChessBase"]
[SourceQuality "1"]
[TimeControl "40/5400+30:1800+30"]

{[%evp 9,49,9,15,20,20,21,17,23,22,10,22,20,23,16,24,24,46,8,23,7,14,4,12,6,16,18,33,4,4,4,4,16,12,5,10,0,1,0,0,0,18,0]} 1. e4 {[%emt 0:03:12]} c6 {[%emt 0:00:10]} 2. d4 {[%emt 0:00:36]} d5 {[%emt 0:00:12]} 3. Nd2 {[%emt 0:00:30]} dxe4 {[%emt 0:00:06]} 4. Nxe4 {[%emt 0:00:07]} Nf6 {[%emt 0:00:07]} 5. Qd3 {[%emt 0:01:05]} Nxe4 {[%emt 0:00:29]} 6. Qxe4 {[%emt 0:00:07] B15: Caro-Kann: 3 Nc3: 3...g6 and 3...dxe4 4 Nxe4 Nf6 5 Nxf6+ exf6.} Qd5 {[%emt 0:00:32]} 7. Qf4 {[%emt 0:00:39]} Bf5 {[%emt 0:07:55]} 8. c4 {[%emt 0:01:54]} Qe4+ {[%emt 0:00:34]} 9. Ne2 {[%emt 0:01:48]} e6 {[%emt 0:14:13]} 10. Qxe4 {[%emt 0:04:31]} Bxe4 {[%emt 0:00:07]} 11. Nc3 {[%emt 0:00:32] [#]} Bb4 $146 {[%emt 0:03:31]} ({Predecessor:} 11... Bf5 12. Be3 Nd7 13. Be2 Be7 14. O-O O-O 15. Rac1 Rfd8 16. Rfd1 Nf6 17. h3 h6 {½-½ (51) Wege,J (2235)-Just,F Bergen Enkheim 1997}) 12. Be3 {[%emt 0:06:23]} O-O {[%emt 0:01:45]} 13. Rc1 {[%emt 0:06:17]} (13. a3 $5 {[%cal Ra3b4]} Bxc3+ 14. bxc3 $11) 13... Bg6 {[%emt 0:16:11]} 14. a3 {[%emt 0:05:23]} Be7 {[%emt 0:00:27]} 15. Be2 {[%emt 0:01:29]} Nd7 {[%emt 0:08:42]} 16. O-O {[%emt 0:03:02]} Rfd8 {[%emt 0:17:24]} 17. Rfd1 {[%emt 0:25:54]} Nb6 {[%emt 0:07:07]} 18. a4 {[%emt 0:04:27]} a5 {[%emt 0:13:00] The position is equal.} 19. d5 {[%emt 0:04:57]} Nd7 {[%emt 0:00:44]} 20. d6 {[%emt 0:01:31]} Bf6 {[%emt 0:00:03]} 21. c5 {[%emt 0:01:06]} Rab8 {[%emt 0:01:40]} 22. Bf3 {[%emt 0:05:47]} Ne5 {[%emt 0:00:57]} 23. Be2 {[%emt 0:13:17]} Nd7 {[%emt 0:00:05]} 24. Bf3 {[%emt 0:01:26]} Ne5 {[%emt 0:00:06]} 25. Be2 {[%emt 0:01:08] Weighted Error Value: White=0.08 (flawless) /Black=0.04 (flawless)} 1/2-1/2

[Event "Swietokrzyskie GM Chess-ch 2022"]
[Site "Zagnansk"]
[Date "2022.05.06"]
[Round "9.5"]
[White "Budisavljevic, GM Luka"]
[Black "Mikrut, IM Dariusz"]
[Result "1-0"]
[ECO "E71"]
[WhiteElo "2509"]
[BlackElo "2361"]
[Annotator "TA"]
[PlyCount "157"]
[EventDate "2022.04.29"]
[EventCountry "POL"]
[SourceTitle "playchess.com"]
[Source "ChessBase"]
[SourceQuality "1"]
[TimeControl "40/5400+30:1800+30"]

{[%evp 21,157,29,34,32,37,35,40,47,45,45,49,50,63,67,67,68,69,69,74,69,64,62,63,62,59,62,60,28,28,20,22,7,8,6,5,4,5,7,8,0,8,8,14,8,8,11,15,15,8,0,15,15,15,15,15,0,0,0,0,0,0,0,0,0,0,0,0,0,0,0,0,0,0,0,0,0,0,0,27,0,15,18,39,0,0,0,117,0,79,79,79,76,106,11,29,11,69,70,70,76,76,76,76,76,76,20,19,19,9,4,76,76,295,10,10,14,931,657,658,650,564,380,977,635,625,625,604,129,129,0,367,254,29979,29980,29979,29980,29975,29974]} 1. d4 {[%emt 0:00:02]} Nf6 {[%emt 0:00:07]} 2. c4 {[%emt 0:00:03]} g6 {[%emt 0:00:05]} 3. Nc3 {[%emt 0:00:04]} Bg7 {[%emt 0:00:05]} 4. e4 {[%emt 0:00:09]} d6 {[%emt 0:00:05]} 5. h3 {[%emt 0:00:37]} O-O {[%emt 0:01:05]} 6. Be3 {[%emt 0:00:04]} c5 {[%emt 0:02:42]} 7. Nf3 {[%emt 0:00:16]} cxd4 {[%emt 0:00:18]} 8. Nxd4 {[%emt 0:00:05]} Nc6 {[%emt 0:00:05]} 9. Be2 {[%emt 0:00:04]} Nxd4 {[%emt 0:00:41]} 10. Bxd4 {[%emt 0:00:05]} Bd7 {[%emt 0:00:04]} 11. O-O {[%emt 0:00:05]} Bc6 {[%emt 0:00:22]} 12. Qc2 {[%emt 0:00:02] B38: Sicilian: Maroczy Bind with 5...Bg7 and 7...0-0.} a5 {[%emt 0:00:42]} 13. Rad1 {[%emt 0:09:08]} Nd7 {[%emt 0:02:18] Prevents c5.} 14. Bxg7 {[%emt 0:01:17] White is slightly better.} Kxg7 {[%emt 0:01:02]} 15. Bg4 {[%emt 0:00:46]} Ne5 {[%emt 0:24:55]} 16. c5 {[%emt 0:00:01][%cal Bc4c5,Bc5d6,Bd6e7][%mdl 32]} Nxg4 {[%emt 0:00:08]} 17. hxg4 {[%emt 0:00:01]} Qc8 {[%emt 0:00:52]} 18. cxd6 {[%emt 0:00:02]} Qxg4 {[%emt 0:02:26]} 19. dxe7 {[%emt 0:00:03]} Rfe8 $1 {[%emt 0:00:21][%cal Bf8e8,Be8e7,Be7d7][%mdl 32] [#]} 20. Nd5 $1 {[%emt 0:00:01]} Bxd5 {[%emt 0:00:10]} 21. Qc3+ {[%emt 0:00:01]} Kg8 {[%emt 0:00:33]} 22. exd5 {[%emt 0:00:01]} Rxe7 {[%emt 0:01:48]} 23. d6 {[%emt 0:00:01]} Rd7 {[%emt 0:02:14]} 24. Rd4 {[%emt 0:00:01] Inhibits Qb4.} (24. Rd5 {keeps more tension.} Qe4 25. Rfd1 a4 26. R1d3) 24... Qe6 {[%emt 0:04:38][%csl LRa2,LRd6]} 25. Re1 {[%emt 0:26:03]} Qf6 {[%emt 0:08:38] [#]} 26. Qc5 $146 {[%emt 0:02:23]} ({Predecessor:} 26. Red1 Kg7 27. R1d3 Ra6 28. Qd2 h5 29. Rd5 Rb6 30. R3d4 Rc6 31. Kh2 b6 32. g3 {½-½ (47) Cornette,M (2597)-Taylor,A (2331) Daventry 2019}) 26... Kg7 {[%emt 0:05:27]} 27. g3 {[%emt 0:07:01]} Ra6 {[%emt 0:06:58]} 28. Red1 {[%emt 0:04:45]} Rc6 {[%emt 0:06:30]} 29. Qa3 {[%emt 0:02:12]} Rc2 30. Qe3 {[%emt 0:06:23] Active counter play!} Rc6 {[%emt 0:06:14][%cal Rc6d6]} 31. Qd2 {[%emt 0:02:11]} (31. Rh4 h5 32. Rhd4 Rcxd6 33. Rxd6 Rxd6 34. Rxd6 Qxd6 35. Qc3+ Qf6 36. Qxa5 Qxb2 $17) 31... b6 {[%emt 0:02:40]} 32. Kg2 {[%emt 0:00:45]} h5 {[%emt 0:00:19]} 33. Qd3 {[%emt 0:03:08]} Qe5 {[%emt 0:02:01]} 34. Rd2 {[%emt 0:01:37]} Rc1 {[%emt 0:03:54]} 35. Re4 {[%emt 0:05:57]} Qf6 {[%emt 0:02:05]} 36. a3 {[%emt 0:10:14]} Rc6 {[%emt 0:00:14][%cal Rc6d6]} 37. Rd4 {[%emt 0:00:05]} Qe5 {[%emt 0:00:31]} 38. b4 {[%emt 0:07:19]} axb4 {[%emt 0:00:06]} 39. axb4 {[%emt 0:00:05]} Rc1 {[%emt 0:03:07]} 40. Re2 {[%emt 0:00:00]} Qf6 {[%emt 0:00:00]} 41. Ra2 {[%emt 0:35:52]} Rc6 {[%emt 0:19:24][%cal Rc6d6]} 42. Rd2 {[%emt 0:00:09]} Qe5 {[%emt 0:03:58]} 43. Rd1 {[%emt 0:03:34]} Qf6 {[%emt 0:01:13]} 44. b5 {[%emt 0:04:45]} Rc5 {[%emt 0:00:46]} 45. Rd5 {[%emt 0:00:18]} Rc3 {[%emt 0:06:27]} 46. Qe4 {[%emt 0:00:02]} Rb3 {[%emt 0:04:59]} 47. R1d4 {[%emt 0:01:08]} Rc3 {[%emt 0:04:15]} (47... Rb2 48. Qe3 $14) 48. Rd1 {[%emt 0:01:29]} Rb3 {[%emt 0:00:07]} 49. R1d2 {[%emt 0:01:26]} Rc3 {[%emt 0:01:13]} 50. R2d4 {[%emt 0:00:11]} Rb3 {[%emt 0:03:19]} 51. Qe2 {[%emt 0:00:14]} Qe6 {[%emt 0:02:04]} 52. Re5 {[%emt 0:00:20]} Qf6 {[%emt 0:00:14]} 53. Red5 {[%emt 0:01:23]} Rb1 {[%emt 0:00:36] [#]} (53... Qe6 $11 {remains equal.} 54. Qc4 Rb1) 54. Qe8 {[%emt 0:01:50]} ({White must play} 54. Qe3 $1 $16) 54... Qd8 {[%emt 0:01:07]} (54... Qe6 $11 55. Qxe6 fxe6) 55. Qe4 $16 {[%emt 0:01:08] The board is on fire.} Rc1 {[%emt 0:00:28]} 56. Qe3 {[%emt 0:00:15]} Rc2 {[%emt 0:00:58]} 57. Rf4 {[%emt 0:00:49]} (57. Ra4 $16) 57... Qa8 {[%emt 0:00:31]} 58. Qd4+ {[%emt 0:00:31]} Kg8 {[%emt 0:00:10]} (58... Kh7 $1 $11 59. Rf3 Rc8) 59. Kh2 $1 $14 {[%emt 0:00:24] Threatens to win with Re5.} Re2 {[%emt 0:00:16]} 60. Re5 {[%emt 0:00:58]} Rxe5 {[%emt 0:01:05]} 61. Qxe5 $16 {[%emt 0:00:01][%mdl 4096] Endgame Rc4 is the strong threat. KQR-KQR} Qd8 {[%emt 0:00:17]} 62. Rd4 {[%emt 0:00:44]} Kh7 {[%emt 0:00:21]} 63. Qd5 {[%emt 0:00:15]} (63. Rd2 $16) 63... Qf6 $11 {[%emt 0:00:50]} 64. Kg2 {[%emt 0:00:46]} Kg7 {[%emt 0:00:15]} 65. Rd3 {[%emt 0:00:18]} Kh7 {[%emt 0:00:43]} (65... h4 $1 $11 {keeps the balance.}) 66. Qc6 $36 {[%emt 0:00:46][%csl LRb6,LRd7][%mdl 2048] White is in control.} Qf5 $2 {[%emt 0:00:33]} (66... Qd8 $16 {was necessary.}) 67. Rd2 $2 {[%emt 0:00:26]} (67. Rd4 $18) 67... h4 $1 $11 {[%emt 0:00:36]} 68. Qxb6 {[%emt 0:00:45]} h3+ $2 {[%emt 0:00:26][%mdl 8192]} (68... hxg3 $11 69. fxg3 Qe4+ 70. Kh2 Qb4) 69. Kh2 $18 {[%emt 0:00:17] aiming for Qc6.} Qg5 {[%emt 0:00:31]} 70. Rd4 {[%emt 0:00:25]} Qf6 {[%emt 0:00:12]} 71. Rf4 {[%emt 0:00:36]} Qe5 $2 {[%emt 0:01:05]} (71... Qxd6 72. Rxf7+ Kh8 73. Qxd6 Rxd6) 72. Rh4+ {[%emt 0:00:28]} Kg7 {[%emt 0:00:19]} 73. Qb8 {[%emt 0:00:07][%csl Gh4][%cal Rb8h8]} Kf6 {[%emt 0:00:15]} 74. Rf4+ $2 {[%emt 0:00:49]} (74. Qa8 $18 {has better winning chances. Intending b6 and mate.} Qxb5 75. Qh8+ Ke6 76. Re4+ Kxd6 77. Re1) 74... Kg7 $16 {[%emt 0:00:12]} 75. Rh4 $2 {[%emt 0:00:02]} ({Of course not} 75. Kxh3 $6 Qd5 76. Rh4 Qh1+ 77. Kg4 Qe4+ 78. f4 (78. Kh3 Qh1+ 79. Kg4 Qe4+ 80. f4 Qe2+ 81. Kh3 Qf1+ 82. Kh2 Qe2+ 83. Kh3 Qf1+ 84. Kh2 Qe2+ 85. Kh3 $11) 78... Qe2+ 79. Kh3 Qf1+ 80. Kh2 (80. Kg4 Qe2+ 81. Kh3 Qf1+ 82. Kh2 Qe2+ 83. Kh3 $11) 80... Qe2+ 81. Kh3 Qf1+ 82. Kh2 (82. Kg4 Qe2+ 83. Kh3 $11) 82... Qe2+ 83. Kh3 $11) (75. Qc8 $16 Qd5 76. Qc3+ Kg8 77. Qc6 (77. Qc8+ Kg7 $16) 77... Qxd6 78. Qa8+ (78. Kxh3 Kg7 $16) 78... Rd8 79. Qf3) 75... Kf6 $18 {[%emt 0:00:04]} 76. b6 {[%emt 0:00:43] White wants to mate with b7.} Qxd6 $2 {[%emt 0:01:23]} (76... Qd5 $18 77. f3 (77. Kxh3 Qh1+ 78. Kg4 Qe4+ 79. Kh3 Qh1+ 80. Kg4 Qe4+ 81. Kh3 Qh1+ $11) (77. Rxh3 Qd2 $11) 77... Qa2+ 78. Kxh3 Qe6+ 79. Rg4 Kg7) 77. Qh8+ {[%emt 0:00:41] White mates.} Ke6 {[%emt 0:00:44]} 78. Re4+ {[%emt 0:00:02]} Kf5 {[%emt 0:00:09]} 79. Rf4+ {[%emt 0:00:05] Weighted Error Value: White=0.10 (very precise) /Black=0.12 (very precise)} 1-0